bitfinex-derivatives/quotes_SOLF0:USTF0_20251125
["timestamp","ask_amount","ask_price","bid_price","bid_amount"]
[1764082164941,0.04819413,133.48,133.45,0.05502179]
[1764082165645,2.77819413,133.48,133.45,0.05502179]
[1764082166040,9.52479413,133.48,133.45,0.05502179]
[1764082166449,2.73,133.47,133.45,0.05502179]
[1764082166748,2.73,133.47,133.39,62.0]
[1764082166961,2.73,133.4,133.3,3.02]
[1764082167254,2.73,133.38,133.3,3.02]
[1764082167642,2.73,133.38,133.3,108.1038]
[1764082167848,0.05721201,133.35,133.33,0.05166191]
[1764082168045,2.73,133.41,133.33,0.05166191]
[1764082168046,2.73,133.41,133.33,0.05380549]
[1764082168351,107.7539,133.38,133.33,0.05380549]
[1764082168557,107.762,133.37,133.28,3.02]
[1764082168849,2.73,133.39,133.26,3.02]
[1764082169046,2.73,133.39,133.25,2.67693192]
[1764082169047,0.04821974,133.34,133.31,0.0475147]
[1764082169252,2.77821974,133.34,133.31,0.0475147]
[1764082170149,0.04821974,133.34,133.31,3.0675147]
[1764082170347,0.04821974,133.34,133.31,0.0475147]
[1764082170749,2.73,133.42,133.33,105.0613]
[1764082170949,2.73,133.42,133.32,105.0701]
[1764082170950,2.73,133.42,133.32,108.0901]
[1764082171447,2.73,133.41,133.32,3.02]
[1764082171848,2.78758599,133.38,133.35,0.0485462]
[1764082172046,0.05312056,133.38,133.35,0.05430191]
[1764082173451,104.955,133.47,133.36,108.0572]
[1764082173645,2.73,133.45,133.36,3.02]
[1764082173847,2.73,133.45,133.36,26.98]
[1764082173848,2.73,133.44,133.36,26.98]
[1764082174047,2.73,133.43,133.35,26.98]
[1764082174447,0.0485252,133.4,133.38,0.04868464]
[1764082175548,2.7785252,133.4,133.38,0.04868464]
[1764082176654,0.0485252,133.4,133.38,0.04868464]
[1764082177246,2.7785252,133.4,133.38,0.04868464]
[1764082177649,0.0485252,133.4,133.38,0.04868464]
[1764082178358,2.7785252,133.4,133.38,0.04868464]
[1764082178554,2.73,133.39,133.29,3.02]
[1764082178851,2.73,133.37,133.25,110.81833192]
[1764082179054,107.7492,133.39,133.28,3.02]
[1764082179247,6.7521,133.37,133.28,3.02]
[1764082179654,0.04732751,133.34,133.31,0.04799027]
[1764082180048,0.04732751,133.34,133.31,3.06799027]
[1764082180458,0.04732751,133.34,133.32,31.8709]
[1764082180656,0.04732751,133.34,133.32,28.8509]
[1764082180859,0.04732751,133.34,133.33,26.96]
[1764082181060,0.04732751,133.34,133.32,1.8909]
[1764082181357,0.04732751,133.34,133.33,26.94]
[1764082181960,107.7265,133.42,133.33,29.96]
[1764082182162,107.725,133.42,133.33,29.96]
[1764082182456,2.73,133.41,133.33,3.02]
[1764082182662,2.73,133.41,133.34,26.94]
[1764082182956,2.78723012,133.39,133.36,0.05158167]
[1764082183154,6.7517,133.38,133.36,0.05158167]
[1764082184052,6.7497,133.42,133.36,3.07158167]
[1764082184250,104.9925,133.42,133.37,26.94]
[1764082184457,105.0514,133.35,133.29,65.02]
[1764082184656,105.0409,133.36,133.29,65.02]
[1764082184657,105.0399,133.36,133.29,3.02]
[1764082184856,2.73,133.37,133.29,3.02]
[1764082185154,105.0478,133.35,133.3,26.96]
[1764082185358,107.7778,133.35,133.29,26.96]
[1764082185558,2.7798859,133.33,133.31,0.04927868]
[1764082185862,6.8041859,133.33,133.31,0.04927868]
[1764082186460,0.0498859,133.33,133.31,0.04927868]
[1764082187562,6.8040859,133.33,133.31,0.04927868]
[1764082187964,0.0498859,133.33,133.31,0.04927868]
[1764082188260,0.0498859,133.33,133.31,2.97927868]
[1764082188657,105.0124,133.4,133.31,2.97927868]
[1764082188863,105.0391,133.36,133.31,2.97927868]
[1764082189262,105.0124,133.4,133.31,2.97927868]
[1764082189456,107.7424,133.4,133.31,2.93]
[1764082189655,0.05119018,133.37,133.34,0.04801582]
[1764082189864,0.05119018,133.37,133.34,2.97801582]
[1764082190166,2.73,133.36,133.27,2.93]
[1764082190754,105.042,133.36,133.28,62.0]
[1764082190956,108.1714,133.18,133.01,9.37035503]
[1764082191156,0.05437903,133.11,133.08,0.05022144]
[1764082191363,114.49685503,133.25,133.08,0.05022144]
[1764082191364,2.99,133.22,133.09,9.37035503]
[1764082191567,105.1598,133.21,133.09,9.37035503]
[1764082191861,105.1684,133.2,133.1,62.0]
[1764082192064,111.9292,133.2,133.1,89.68]
[1764082192269,0.04832806,133.16,133.14,0.05617843]
[1764082194755,0.04832806,133.16,133.08,2.93]
[1764082194953,105.1837,133.18,133.08,2.93]
[1764082195360,108.1584,133.2,133.08,2.93]
[1764082195654,0.04772082,133.15,133.13,0.05702167]
[1764082195858,0.05408237,133.15,133.13,2.98702167]
[1764082196059,2.99,133.2,133.13,2.98702167]
[1764082196263,108.1574,133.2,133.13,2.98702167]
[1764082196762,114.9196,133.2,133.13,2.98702167]
[1764082196958,114.9196,133.2,133.13,0.05702167]
[1764082197166,3.04075187,133.18,133.13,0.05702167]
[1764082197668,0.05075187,133.18,133.13,2.98702167]
[1764082198171,0.05075187,133.18,133.13,30.66702167]
[1764082198564,0.05075187,133.18,133.14,2.93]
[1764082199071,2.99,133.25,133.15,2.93]
[1764082199262,108.1183,133.25,133.15,2.93]
[1764082199457,2.99,133.25,133.15,2.93]
[1764082199671,2.99,133.25,133.16,27.7]
[1764082199672,108.1183,133.25,133.16,27.7]
[1764082199868,2.99,133.25,133.16,27.7]
[1764082200169,0.05074276,133.22,133.19,0.05312689]
[1764082200359,3.03074276,133.22,133.19,0.05312689]
[1764082200969,2.98,133.21,133.19,0.05312689]
[1764082201171,0.05074276,133.22,133.19,0.05312689]
[1764082201362,105.1071,133.28,133.19,0.05312689]
[1764082201363,2.98,133.27,133.19,0.05312689]
[1764082201668,2.98,133.27,133.18,3.18]
[1764082201870,2.98,133.3,133.19,65.18]
[1764082202060,2.98,133.28,133.2,27.7]
[1764082202265,0.03420306,133.25,133.23,0.05500352]
[1764082203565,3.01420306,133.25,133.23,0.05500352]
[1764082204463,2.98,133.24,133.15,3.18]
[1764082204673,2.98,133.28,133.18,3.18]
[1764082204874,108.09,133.27,133.18,3.18]
[1764082205067,108.114,133.24,133.13,3.18]
[1764082205273,105.1208,133.26,133.14,30.88]
[1764082205274,2.98,133.23,133.14,30.88]
[1764082205569,0.05556177,133.2,133.17,0.05518646]
[1764082206071,3.03556177,133.2,133.17,0.05518646]
[1764082206464,108.1215,133.23,133.17,0.05518646]
[1764082206662,2.98,133.21,133.17,0.05518646]
[1764082207166,108.2083,133.12,133.04,3.18]
[1764082207368,108.2176,133.11,133.04,3.18]
[1764082207674,108.2175,133.11,133.04,3.18]
[1764082207876,108.2241,133.1,133.02,27.72]
[1764082208070,3.02820694,133.07,133.05,0.05139326]
[1764082208775,0.04820694,133.07,132.99,9.20251021]
[1764082208977,2.98,133.09,133.0,3.18]
[1764082209471,2.98,133.08,133.0,3.18]
[1764082209876,0.05036438,133.05,133.03,0.05629821]
[1764082210170,3.03036438,133.05,133.03,0.05629821]
[1764082210375,0.05036438,133.05,133.03,0.05629821]
[1764082210678,3.03036438,133.05,133.03,0.05629821]
[1764082210873,0.05036438,133.05,133.03,0.05629821]
[1764082212077,0.05036438,133.05,133.03,3.23629821]
[1764082212378,0.05036438,133.05,133.03,0.05629821]
[1764082212975,3.03036438,133.05,133.03,0.05629821]
[1764082213676,0.05036438,133.05,133.03,0.05629821]
[1764082214183,0.05036438,133.05,133.03,3.23629821]
[1764082214375,2.98,133.13,133.03,3.23629821]
[1764082214575,6.7651,133.12,133.03,3.18]
[1764082214774,2.98,133.13,133.03,3.18]
[1764082215084,2.98,133.13,133.05,3.18]
[1764082215574,0.05045913,133.1,133.08,0.05011087]
[1764082215779,0.05157135,133.1,133.08,0.04929408]
[1764082216170,9.00251021,133.18,133.08,3.22929408]
[1764082216370,2.98,133.17,133.08,3.18]
[1764082216570,2.98,133.17,133.05,6.02251021]
[1764082216571,108.1742,133.17,133.06,27.7]
[1764082216777,6.7654,133.11,133.05,27.7]
[1764082216980,9.7454,133.11,133.04,3.18]
[1764082217182,0.03828879,133.09,133.06,0.05175172]
[1764082217785,0.03828879,133.09,133.06,3.22175172]
[1764082218076,3.16,133.16,133.06,3.22175172]
[1764082218270,105.1702,133.2,133.06,3.22175172]
[1764082218271,3.16,133.2,133.09,3.17]
[1764082218676,3.16,133.2,133.1,3.17]
[1764082218868,3.16,133.19,133.14,0.05314309]
[1764082219074,3.16,133.18,133.14,0.05314309]
[1764082219284,3.16,133.15,133.06,30.85]
[1764082219479,3.16,133.15,132.99,105.3282]
[1764082219480,3.16,133.12,133.03,3.17]
[1764082219780,111.23771021,133.14,132.98,2.70559378]
[1764082219781,3.16,133.09,133.0,3.17]
[1764082220077,105.234,133.12,133.02,3.17]
[1764082220282,0.0531431,133.08,133.06,0.0502835]
[1764082220480,0.04989099,133.08,133.06,3.22524991]
[1764082220676,216.40991021,133.17,133.07,27.7]
[1764082220877,216.40991021,133.17,133.09,3.17]
[1764082220878,3.16,133.17,133.09,3.17]
[1764082221272,3.16,133.17,133.09,9.9361]
[1764082221477,216.33121021,133.22,133.11,3.17]
[1764082221478,3.16,133.21,133.11,3.17]
[1764082221678,3.16,133.21,133.15,0.04986097]
[1764082221979,3.16,133.21,133.15,27.74986097]
[1764082222179,105.1383,133.24,133.15,27.74986097]
[1764082222375,105.1383,133.24,133.14,3.17]
[1764082222376,3.16,133.25,133.18,0.04875867]
[1764082222576,108.2884,133.25,133.18,0.04875867]
[1764082222782,3.16,133.25,133.18,0.04875867]
[1764082223084,105.1381,133.24,133.18,0.04875867]
[1764082223288,3.16,133.25,133.18,0.04875867]
[1764082223483,3.16,133.29,133.18,9.24126888]
[1764082223686,108.2654,133.28,133.22,0.05748102]
[1764082223877,3.16,133.28,133.22,0.05748102]
[1764082224086,3.16,133.31,133.22,3.22748102]
[1764082224387,3.16,133.31,133.25,0.05429207]
[1764082225183,3.16,133.35,133.26,3.17]
[1764082225379,3.16,133.35,133.27,9.19251021]
[1764082225686,3.16,133.34,133.3,0.05055072]
[1764082225887,108.2193,133.34,133.3,0.05055072]
[1764082226080,105.035,133.37,133.3,0.05055072]
[1764082226385,105.0393,133.36,133.3,0.05055072]
[1764082226587,114.9431,133.37,133.3,27.73055072]
[1764082226783,3.16,133.37,133.3,0.05055072]
[1764082226990,105.0123,133.4,133.3,3.22055072]
[1764082227185,105.015,133.4,133.34,3.22060803]
[1764082227382,3.16,133.36,133.34,0.05060803]
[1764082227579,111.7931,133.36,133.34,0.05060803]
[1764082227986,111.7931,133.36,133.25,3.17]
[1764082227987,105.074,133.32,133.25,3.17]
[1764082228182,105.0559,133.34,133.26,27.66]
[1764082228484,111.05051021,133.38,133.26,27.66]
[1764082228485,105.028,133.38,133.28,3.17]
[1764082228686,6.7514,133.38,133.3,9.19251021]
[1764082228885,111.7748,133.38,133.31,3.17]
[1764082229085,0.0507415,133.35,133.33,0.05563047]
[1764082229387,220.0637415,133.35,133.33,0.05563047]
[1764082229587,220.0637415,133.35,133.27,98.83251021]
[1764082229588,105.0654,133.33,133.27,98.83251021]
[1764082229784,105.0654,133.33,133.27,71.19251021]
[1764082230179,105.0785,133.31,133.27,65.17]
[1764082230494,105.0972,133.29,133.28,0.05337173]
[1764082230693,105.0972,133.29,133.27,0.0541916]
[1764082230889,105.1254,133.26,133.18,3.17]
[1764082231092,105.1273,133.25,133.18,3.17]
[1764082231289,111.9088,133.22,133.18,3.17]
[1764082231496,6.7596,133.22,133.16,33.64251021]
[1764082231788,6.7596,133.22,133.14,3.17]
[1764082232096,6.7596,133.22,133.1,105.2387]
[1764082232097,3.16,133.19,133.18,0.055876]
[1764082232396,105.1968,133.16,133.1,3.17]
[1764082232590,105.2065,133.15,133.1,3.17]
[1764082232787,108.3665,133.15,133.08,27.62]
[1764082233096,111.9769,133.14,133.08,27.62]
[1764082233290,0.04737594,133.12,133.1,0.05165757]
[1764082233688,0.04737594,133.12,133.1,3.22165757]
[1764082234580,111.9288,133.2,133.1,10.74416778]
[1764082234790,105.1661,133.2,133.11,3.17]
[1764082235094,105.1809,133.18,133.11,3.17]
[1764082235302,105.1738,133.19,133.11,3.17]
[1764082235685,0.04758461,133.16,133.14,0.04803947]
[1764082235885,0.04758461,133.16,133.14,3.21803947]
[1764082236379,0.04758461,133.16,133.14,30.81803947]
[1764082236578,0.04758461,133.16,133.15,3.17]
[1764082236794,0.04758461,133.16,133.15,65.17]
[1764082236988,108.3172,133.21,133.15,62.0]
[1764082237292,111.9425,133.18,133.13,27.58]
[1764082237490,111.9425,133.18,133.11,3.17]
[1764082237690,105.1809,133.18,133.11,30.75]
[1764082237896,111.9513,133.17,133.11,30.75]
[1764082238094,0.05461428,133.16,133.13,0.05185211]
[1764082238397,0.05461428,133.16,133.13,3.22185211]
[1764082238991,0.00461428,133.16,133.13,3.22185211]
[1764082239191,108.3062,133.23,133.13,3.22185211]
[1764082239394,3.16,133.23,133.15,9.19251021]
[1764082239698,6.7592,133.23,133.16,3.17]
[1764082239892,105.1186,133.26,133.18,3.17]
[1764082240096,0.05344973,133.23,133.21,0.05004007]
[1764082240297,3.16,133.22,133.21,0.05004007]
[1764082240996,111.95504973,133.23,133.21,0.05004007]
[1764082241203,6.81284973,133.23,133.21,0.05004007]
[1764082241401,115.11484973,133.23,133.21,0.05004007]
[1764082241703,6.7614,133.19,133.14,30.71]
[1764082241901,6.7614,133.19,133.15,3.17]
[1764082242596,0.05255376,133.18,133.16,62.04927942]
[1764082242901,105.135,133.24,133.16,3.21927942]
[1764082243089,105.135,133.24,133.16,3.17]
[1764082243489,108.2717,133.27,133.18,3.17]
[1764082243698,105.1179,133.26,133.18,3.17]
[1764082243903,115.0717,133.22,133.21,0.05544825]
[1764082244199,105.19606424,133.23,133.15,3.17]
[1764082244396,111.9183,133.21,133.15,3.17]
[1764082244593,108.3254,133.2,133.13,6.02251021]
[1764082244796,108.3254,133.2,133.14,27.52]
[1764082245103,6.81405742,133.18,133.16,0.05146197]
[1764082245306,0.05195742,133.18,133.16,0.05146197]
[1764082245606,0.05195742,133.18,133.16,3.22146197]
[1764082245904,0.05195742,133.18,133.17,65.17]
[1764082246494,108.2879,133.25,133.17,65.17]
[1764082246702,108.2586,133.29,133.18,3.17]
[1764082246912,105.1259,133.25,133.18,3.17]
[1764082247306,105.1101,133.27,133.18,3.17]
[1764082247506,0.05571222,133.24,133.21,0.05093663]
[1764082248025,3.28571222,133.24,133.21,0.05093663]
[1764082248499,0.05571222,133.24,133.21,0.05093663]
[1764082248699,0.05571222,133.24,133.21,3.06093663]
[1764082249105,3.23,133.31,133.21,3.06093663]
[1764082249305,3.23,133.31,133.21,3.01]
[1764082249801,3.23,133.31,133.22,27.46]
[1764082250008,3.23,133.31,133.25,0.05475695]
[1764082250212,3.23,133.29,133.25,0.05475695]
[1764082250806,3.23,133.33,133.25,0.05475695]
[1764082251004,3.23,133.3,133.23,27.44]
[1764082251199,6.7562,133.29,133.23,27.44]
[1764082251706,3.23,133.29,133.21,30.45]
[1764082252008,3.27957515,133.26,133.24,0.05760575]
[1764082252800,3.27957515,133.26,133.17,65.01]
[1764082252801,108.39767515,133.26,133.17,65.01]
[1764082252996,3.23,133.26,133.17,92.43]
[1764082253197,9.25251021,133.3,133.18,3.01]
[1764082253401,3.23,133.29,133.18,3.01]
[1764082253608,3.23,133.28,133.18,3.01]
[1764082253809,0.05237291,133.24,133.22,0.05187176]
[1764082254215,0.05237291,133.24,133.22,3.06187176]
[1764082254710,0.05237291,133.24,133.22,0.05187176]
[1764082255905,0.05237291,133.24,133.22,3.06187176]
[1764082256101,3.23,133.33,133.22,3.06187176]
[1764082256305,3.23,133.33,133.22,3.01]
[1764082256707,3.23,133.32,133.22,3.01]
[1764082256914,3.23,133.32,133.23,27.38]
[1764082257112,0.05088791,133.29,133.26,0.04798898]
[1764082257414,3.28088791,133.29,133.26,0.04798898]
[1764082258408,108.37768791,133.29,133.26,0.04798898]
[1764082258609,3.23,133.28,133.26,0.04798898]
[1764082259012,9.9867,133.28,133.26,0.04798898]
[1764082259214,2.93,133.27,133.26,0.04798898]
[1764082259808,6.07339812,133.29,133.26,0.04798898]
[1764082259809,2.98088791,133.29,133.26,0.04798898]
[1764082260209,6.7587,133.24,133.17,65.04]
[1764082260508,108.0742,133.23,133.17,62.0]
[1764082260825,2.93,133.22,133.14,3.04]
[1764082261115,108.0187,133.3,133.19,3.04]
[1764082261321,0.05771577,133.26,133.23,3.09058432]
[1764082261915,0.05771577,133.26,133.25,3.04]
[1764082262108,2.93,133.34,133.25,3.04]
[1764082262304,2.93,133.34,133.21,3.04]
[1764082262305,2.93,133.3,133.21,3.04]
[1764082262618,2.93,133.28,133.22,27.36]
[1764082262918,6.7563,133.29,133.22,30.4]
[1764082263105,0.0552337,133.27,133.24,3.08975624]
[1764082263414,2.93,133.32,133.24,0.05110786]
[1764082263611,108.003,133.32,133.25,62.0]
[1764082263812,2.93,133.32,133.25,62.0]
[1764082264009,105.0661,133.33,133.25,62.0]
[1764082264010,114.00161021,133.35,133.25,65.04]
[1764082264211,2.93,133.35,133.26,3.04]
[1764082264412,2.93,133.39,133.31,3.04]
[1764082264716,9.6811,133.39,133.34,0.04849778]
[1764082264920,2.93,133.39,133.34,0.04849778]
[1764082265118,2.93,133.39,133.34,3.08849778]
[1764082265324,111.00961021,133.43,133.34,3.08849778]
[1764082265325,2.93,133.42,133.34,3.08849778]
[1764082265621,2.93,133.45,133.37,3.09234767]
[1764082265816,2.93,133.45,133.4,0.05550149]
[1764082266019,2.93,133.48,133.4,30.43550149]
[1764082266211,2.93,133.48,133.43,0.0478155]
[1764082266413,104.8902,133.55,133.43,3.0878155]
[1764082266621,2.93,133.55,133.48,0.05278085]
[1764082266821,9.6732,133.55,133.48,0.05278085]
[1764082267009,107.8352,133.53,133.48,0.05278085]
[1764082267214,2.93,133.52,133.48,0.05278085]
[1764082267415,2.93,133.57,133.48,0.05278085]
[1764082267615,107.8039,133.57,133.47,3.04]
[1764082267815,6.7427,133.56,133.5,0.05516151]
[1764082268218,107.8054,133.57,133.5,0.05516151]
[1764082268430,104.9061,133.53,133.5,0.05516151]
[1764082268620,2.93,133.44,133.36,3.04]
[1764082268825,2.93,133.48,133.38,3.04]
[1764082269019,107.8769,133.48,133.38,3.04]
[1764082269225,104.9179,133.52,133.38,3.04]
[1764082269226,104.9256,133.51,133.41,3.04]
[1764082269422,2.93,133.5,133.41,3.04]
[1764082269625,104.916,133.52,133.41,3.04]
[1764082269626,2.97968065,133.47,133.44,0.05614508]
[1764082270216,0.04968065,133.47,133.44,0.05614508]
[1764082270721,0.04968065,133.47,133.44,3.09614508]
[1764082270913,2.93,133.55,133.44,108.06894508]
[1764082271116,104.9071,133.53,133.45,3.04]
[1764082271321,2.93,133.51,133.43,27.46]
[1764082271525,2.93,133.51,133.44,62.0]
[1764082271825,107.8518,133.51,133.44,62.0]
[1764082272132,2.93,133.48,133.46,0.05261604]
[1764082272337,9.6769,133.47,133.46,0.05261604]
[1764082272835,9.6769,133.47,133.36,108.0759]
[1764082273016,9.6769,133.47,133.38,3.04]
[1764082273430,9.6757,133.5,133.39,3.04]
[1764082273738,2.93,133.46,133.36,105.0359]
[1764082273928,104.9839,133.43,133.33,3.04]
[1764082274123,2.93,133.38,133.37,0.05053673]
[1764082274318,114.7146,133.37,133.26,108.1575]
[1764082274526,2.93,133.37,133.29,3.04]
[1764082275034,107.9241,133.42,133.31,3.04]
[1764082275225,107.9241,133.42,133.35,0.04951506]
[1764082275226,0.05572671,133.38,133.35,0.04951506]
[1764082275834,0.05572671,133.38,133.35,3.08951506]
[1764082276135,2.93,133.42,133.35,3.08951506]
[1764082277124,0.05528,133.4,133.35,3.08951506]
[1764082277530,0.05528,133.4,133.36,3.04]
[1764082277731,3.22,133.46,133.36,3.04]
[1764082277931,3.22,133.46,133.36,9.792]
[1764082278334,3.22,133.46,133.36,3.04]
[1764082278637,3.22,133.5,133.4,3.09686208]
[1764082278831,108.1173,133.54,133.42,3.04]
[1764082279026,3.22,133.54,133.44,0.05750696]
[1764082279230,3.22,133.54,133.48,0.04767496]
[1764082279736,3.22,133.54,133.48,27.48767496]
[1764082280435,108.1174,133.54,133.48,0.04767496]
[1764082280632,3.22,133.52,133.48,0.04767496]
[1764082281226,6.743,133.55,133.48,0.04767496]
[1764082281428,3.22,133.56,133.48,0.04767496]
[1764082281630,3.22,133.56,133.49,62.0]
[1764082281829,3.22,133.56,133.51,0.05299726]
[1764082282325,104.8507,133.6,133.51,0.05299726]
[1764082282326,108.0731,133.6,133.51,3.09299726]
[1764082282532,3.22,133.58,133.54,0.04920784]
[1764082283141,108.0863,133.58,133.54,0.04920784]
[1764082283329,3.22,133.56,133.54,0.04920784]
[1764082283636,6.7423,133.57,133.54,0.04920784]
[1764082283637,3.22,133.57,133.54,0.04920784]
[1764082284333,3.22,133.61,133.54,0.04920784]
[1764082285140,3.22,133.61,133.55,62.0]
[1764082285334,3.22,133.61,133.55,68.7424]
[1764082285644,108.063,133.61,133.54,0.04920784]
[1764082285930,3.22,133.56,133.54,0.04920784]
[1764082286138,3.22,133.6,133.54,0.04920784]
[1764082286433,108.0862,133.58,133.54,0.04920784]
[1764082286637,3.22,133.55,133.46,3.04]
[1764082286834,3.22,133.53,133.42,3.04]
[1764082287028,3.22,133.53,133.43,135.4034]
[1764082287226,3.22,133.57,133.44,3.04]
[1764082287425,3.22,133.57,133.5,6.745]
[1764082287726,3.22,133.57,133.52,0.05694762]
[1764082287727,0.05695467,133.55,133.52,0.05694762]
[1764082287926,3.22,133.66,133.58,104.8629]
[1764082288130,3.22,133.66,133.59,132.2338]
[1764082288327,3.22,133.66,133.57,3.04]
[1764082288633,3.22,133.66,133.58,62.0]
[1764082288935,3.22,133.64,133.61,0.05060842]
[1764082289639,3.22,133.71,133.61,0.05060842]
[1764082289824,3.22,133.71,133.65,0.05041884]
[1764082291226,3.22,133.75,133.66,104.7985]
[1764082291434,3.22,133.75,133.67,104.7949]
[1764082291631,3.22,133.75,133.66,104.7985]
[1764082291940,3.22,133.72,133.63,27.36]
[1764082292629,3.22,133.72,133.62,111.5701]
[1764082292937,3.26779471,133.68,133.66,0.05366564]
[1764082293230,0.04779471,133.68,133.66,0.04907195]
[1764082293437,3.26779471,133.68,133.66,0.04907195]
[1764082293635,0.04779471,133.68,133.66,0.04907195]
[1764082294434,3.26779471,133.68,133.66,0.04907195]
[1764082294633,104.83869471,133.68,133.57,9.35173864]
[1764082294832,104.7755,133.7,133.59,3.04]
[1764082294833,3.22,133.7,133.59,3.04]
[1764082295030,3.22,133.7,133.6,6.7402]
[1764082295335,3.22,133.7,133.61,27.34]
[1764082295538,3.22,133.7,133.61,30.38]
[1764082295733,0.05359058,133.67,133.64,0.0534526]
[1764082296326,0.05359058,133.67,133.64,27.3734526]
[1764082296536,3.27359058,133.67,133.64,0.0534526]
[1764082297734,3.22,133.63,133.54,89.82]
[1764082298038,111.5579,133.64,133.54,89.82]
[1764082298039,3.22,133.67,133.56,3.04]
[1764082298432,111.5268,133.68,133.57,3.04]
[1764082298634,6.7367,133.68,133.58,62.0]
[1764082298836,0.0494299,133.64,133.62,0.05227673]
[1764082299035,0.05749399,133.64,133.62,30.39227673]
[1764082299242,107.9653,133.74,133.63,3.04]
[1764082299537,3.22,133.74,133.63,3.04]
[1764082300132,114.6949,133.74,133.63,3.04]
[1764082300329,3.22,133.69,133.67,0.05684055]
[1764082300526,104.7507,133.73,133.67,0.05684055]
[1764082300527,3.22,133.74,133.67,3.08829159]
[1764082300833,3.27279531,133.72,133.69,0.04903445]
[1764082301038,3.27097829,133.72,133.69,0.04918533]
[1764082301226,0.05097829,133.72,133.69,0.04918533]
[1764082301430,3.27097829,133.72,133.69,0.04918533]
[1764082301830,114.76227829,133.72,133.69,0.04918533]
[1764082302042,0.05097829,133.72,133.69,0.04918533]
[1764082302744,3.27097829,133.72,133.69,0.04918533]
[1764082302933,10.00557829,133.72,133.69,0.04918533]
[1764082303132,108.02757829,133.72,133.69,0.04918533]
[1764082303429,3.27097829,133.72,133.69,0.04918533]
[1764082303831,0.05097829,133.72,133.69,0.04918533]
[1764082304027,3.27097829,133.72,133.69,0.04918533]
[1764082304336,3.22,133.7,133.69,0.04918533]
[1764082304537,6.7358,133.69,133.61,27.28]
[1764082304738,9.9558,133.69,133.61,27.28]
[1764082305040,3.22,133.69,133.6,3.04]
[1764082305243,3.22,133.69,133.61,27.28]
[1764082305439,0.0527733,133.66,133.64,0.05476297]
[1764082305742,104.7516,133.73,133.64,3.09476297]
[1764082305743,3.22,133.73,133.64,3.09476297]
[1764082305941,3.22,133.73,133.64,3.04]
[1764082306343,3.22,133.77,133.67,3.04]
[1764082306542,3.22,133.77,133.69,3.04]
[1764082306733,0.04714441,133.74,133.72,0.05207163]
[1764082306935,0.04714441,133.74,133.72,3.09207163]
[1764082309443,0.04714441,133.74,133.73,62.0]
[1764082309941,0.04714441,133.74,133.72,3.09207163]
[1764082310238,3.07714441,133.74,133.72,0.05207163]
[1764082310546,3.03,133.71,133.63,30.18]
[1764082310742,9.7671,133.67,133.58,2.96]
[1764082311044,9.7671,133.67,133.59,27.22]
[1764082311348,0.05577019,133.64,133.62,0.0537679]
[1764082311752,3.08577019,133.64,133.62,0.0537679]
[1764082312042,0.05577019,133.64,133.62,0.0537679]
[1764082312244,3.08577019,133.64,133.62,0.0537679]
[1764082313047,3.03,133.63,133.62,0.0537679]
[1764082314754,3.03,133.62,133.52,2.96]
[1764082314961,3.03,133.62,133.53,36.9036]
[1764082315759,0.05386696,133.59,133.56,0.05416249]
[1764082316049,0.05386696,133.59,133.56,3.01416249]
[1764082316651,0.05386696,133.59,133.56,0.05416249]
[1764082317547,3.08386696,133.59,133.56,0.05416249]
[1764082317749,0.05386696,133.59,133.56,0.05416249]
[1764082318641,6.79486696,133.59,133.56,0.05416249]
[1764082318845,3.07386696,133.59,133.56,0.05416249]